Cogmind - Beta 11 X7 @@@ ROGUE MODE // 2021.09.03 @ 01:56:35 Player: AlmondRoll Result: Destroyed by S-43 Plague with Heavy Machine Gun Performance ------------- Evolutions (9) 4500 Regions Visited (19) 3800 Robots Destroyed (213) 1065 Value Destroyed (7631) 7631 Prototype IDs (62) 1240 Alien Tech Used (0) 0 Bonus (6949) 6949 TOTAL SCORE: 25185 Bonus ------- Triggered High Security 500 High Alert Combat Kills 2319 Follower Combat Kills 2645 Aligned with FarCom 300 Met Imprinter 300 Was Imprinted 300 Met Zhirov 300 Built Enhanced Grunts 300 Met R17 at Cetus 500 Read Decrypted Archives 300 Friendly Fire -815 Cogmind --------- Core Integrity 0/1600 Matter 179/300 Energy 99/100 System Corruption 6% Temperature Cool (0) Movement Core (50) Location -1/Access Parts ------- > --- POWER (2) -------- (None) > --- PROPULSION (8) --- (None) > --- UTILITY (11) ----- (None) > --- WEAPON (4) ------- (None) > --- INVENTORY (5) ---- Light Quantum Reactor Large Storage Unit Experimental Transmission Jammer Skeleton Box Enhanced Nova Cannon Peak State ------------ > --- POWER ------------ Micro Fission Core Light Antimatter Reactor > --- PROPULSION ------- Gyrokinetic Inverter Improved Antigrav System Improved Antigrav System Improved Antigrav System Improved Antigrav System Improved Antigrav System > --- UTILITY ---------- Advanced Power Amplifier Advanced Power Amplifier Experimental Cooling System Advanced Coolant Injector Medium Storage Unit Zionite Biocell Machine Analyzer Quantum Capacitor Experimental Transmission Jammer Centrium Medium Armor Plating > --- WEAPON ----------- Firepult > --- INVENTORY -------- Combat Gravmag System Improved Antigrav System Experimental Heat Sink Long-range Sensor Array Long-range Terrain Scanner Advanced Armor Integrity Analyzer Improved Weapon Cycler Centrium Medium Armor Plating Advanced Force Field Skeleton Box [Rating: 152] Favorites ----------- Power Micro Fission Core Engine Light Ion Engine Power Core Micro Fission Core Reactor Zionite Light DM Reactor Propulsion Antigrav System Treads Light Treads Leg Aluminum Leg Wheel Compact Wheel Hover Unit Antigrav System Flight Unit Cooled Field Propulsion Drive Utility Experimental Heat Sink Device Experimental Heat Sink Storage Medium Storage Unit Processor Advanced Signal Interpreter Hackware Improved Hacking Suite Protection Centrium Medium Armor Plating Weapon Light Assault Rifle Energy Gun Backup Laser I Energy Cannon Firepult Ballistic Gun Light Assault Rifle Ballistic Cannon Mass Driver Launcher Scatter Rocket Array Impact Weapon Heavy Flail Slashing Weapon Vibroblade Build | -11 -10 -10 -10 -9 -8 -8 -7 -7 -6 -5 -5 -5 -5 -5 -5 -4 -3 -2 -1 ------- Run | Scr Mat Min Exi Min Mat Sto Fac Low Zio Pro Fac Ext Cet Arc Hub Fac Res Res Acc Slots Evolved 18 | . . . . . 4 . 2 . . . 4 . . . . 2 2 2 2 Power 1 | . . . . . . . . . . . 1 . . . . . . . . Propulsion 6 | . . . . . 2 . 1 . . . 1 . . . . . . 2 . Utility 9 | . . . . . 2 . 1 . . . 2 . . . . 2 2 . . Weapon 2 | . . . . . . . . . . . . . . . . . . . 2 Parts Attached 307 | . 8 10 1 . 41 25 11 . . 4 25 30 4 . 10 36 71 21 10 Power 23 | . . 2 . . 3 3 1 . . 1 1 2 . . 2 1 3 3 1 Engine 5 | . . 2 . . . 2 1 . . . . . . . . . . . . Core 11 | . . . . . 3 1 . . . 1 1 1 . . 2 1 1 . . Reactor 7 | . . . . . . . . . . . . 1 . . . . 2 3 1 Propulsion 89 | . 4 2 . . 10 10 5 . . . 13 8 . . 2 7 19 7 2 Treads 25 | . . 2 . . 8 8 . . . . 7 . . . . . . . . Leg 1 | . . . . . 1 . . . . . . . . . . . . . . Wheel 7 | . 4 . . . 1 2 . . . . . . . . . . . . . Hover 46 | . . . . . . . 5 . . . 4 8 . . 2 7 14 6 . Flight 10 | . . . . . . . . . . . 2 . . . . . 5 1 2 Utility 142 | . 3 1 . . 12 4 3 . . . 7 17 4 . 6 26 43 11 5 Device 90 | . 1 . . . 4 2 1 . . . 4 11 2 . 4 20 31 8 2 Storage 9 | . 2 . . . . . 1 . . . . . . . 1 1 4 . . Processor 13 | . . . . . 1 . . . . . 1 . 1 . . . 4 3 3 Hackware 2 | . . . . . . . . . . . 2 . . . . . . . . Protection 28 | . . 1 . . 7 2 1 . . . . 6 1 . 1 5 4 . . Artifact . | . . . . . . . . . . . . . . . . . . . . Weapon 53 | . 1 5 1 . 16 8 2 . . 3 4 3 . . . 2 6 . 2 Energy Gun 1 | . . . . . . 1 . . . . . . . . . . . . . Energy Cannon 8 | . . . . . 1 . . . . . 1 2 . . . 1 2 . 1 Ballistic Gun 29 | . 1 4 1 . 10 5 2 . . 2 . 1 . . . . 2 . 1 Ballistic Cannon 1 | . . . . . . . . . . . 1 . . . . . . . . Launcher 10 | . . 1 . . 3 2 . . . 1 2 . . . . . 1 . . Special Weapon . | . . . . . . . . . . . . . . . . . . . . Impact Weapon 2 | . . . . . 2 . . . . . . . . . . . . . . Slashing Weapon 2 | . . . . . . . . . . . . . . . . 1 1 . . Piercing Weapon . | . . . . . . . . . . . . . . . . . . . . Special Melee Weapon . | . . . . . . . . . . . . . . . . . . . . Unidentified Prototypes 28 | . . . . . 1 3 1 . . . 1 5 1 . 1 4 10 1 . Corrupted Parts 2 | . . . . . . . . . . . 1 . . . . . 1 . . System Corruption 4 | . . . . . . . . . . . 3 . . . . . 1 . . Parts Lost 92 | . 3 5 . . 5 1 . . . 1 14 5 . 4 . 7 24 17 6 Power 8 | . 1 1 . . 1 . . . . . 2 . . . . . 2 1 . Propulsion 42 | . 1 2 . . 3 . . . . . 7 3 . 3 . 4 7 9 3 Utility 34 | . . 1 . . 1 . . . . . 4 2 . 1 . 3 12 7 3 Weapon 8 | . 1 1 . . . 1 . . . 1 1 . . . . . 3 . . Highest Loss Streak 17 | . 3 3 . . 2 1 . . . 1 14 2 . 4 . 2 13 17 6 Average Slot Usage (%) 87 | . 86 94 100 100 90 99 96 100 100 100 71 81 88 76 74 90 85 56 24 Engine 3 | . 5 10 14 14 3 3 3 7 7 . . . . . . . . . . Core 3 | . . . . . 4 5 3 . . 6 3 3 5 5 7 10 6 . . Treads 10 | . . 20 28 28 29 33 . . . . 4 5 . . . . . . . Wheel 1 | . 17 6 . . 1 2 . . . . . . . . . . . . . Hover 15 | . . . . . . . 36 38 38 38 20 21 29 20 16 27 25 9 3 Device 16 | . 10 4 . . 9 18 21 23 23 23 18 19 23 23 27 24 23 12 6 Storage 7 | . 16 14 14 14 9 9 7 7 7 7 4 . . . 1 5 6 . . Processor 3 | . . . . . 2 . . . . . 4 5 5 5 5 5 9 16 14 Protection 7 | . . 9 14 14 12 9 7 7 7 7 3 7 11 8 3 11 4 . . Energy Cannon 1 | . . . . . . . . . . . . 3 5 5 5 4 3 . . Ballistic Gun 10 | . 28 27 28 28 14 17 14 15 15 14 2 . . . . . . . . Naked Turns 20 | . . . . . . . . . . . . . . . . . . . 20 Heaviest Build 84 | 11 43 53 53 53 79 84 49 36 36 36 51 53 48 48 48 56 80 28 18 Greatest Support 82 | 20 32 40 40 40 80 82 40 40 40 40 40 67 54 54 56 78 71 40 14 Greatest Overweight (x) 4 | . 2 2 1 1 3 4 1 . . . 2 1 . 2 2 . 1 2 2 Average Overweight (x) . | . . 1 1 1 . . . . . . . . . . . . . . . Largest Inventory Capacity 20 | 8 20 20 20 20 20 20 20 10 10 10 10 5 5 5 10 10 10 5 5 Average Capacity 12 | 8 16 20 20 20 20 20 10 10 10 10 9 5 5 5 6 10 9 5 5 Most Carried 20 | 6 15 20 20 20 20 20 20 10 10 10 10 5 5 5 10 10 10 5 5 Average Carried 12 | 6 11 18 19 19 19 19 10 10 9 10 8 4 4 5 6 9 9 4 4 Final Capacity 20 | 8 20 20 20 20 20 20 10 10 10 10 5 5 5 5 10 10 5 5 5 Final Carried 20 | 6 15 20 20 20 20 20 10 10 10 10 5 5 5 5 10 10 5 5 5 Class Distribution -------------------- 49% | Mutant 27% | Scavenger-Mutant 9% | Scavenger-Scout 8% | Commander-Mutant Dominant Class ---------------- Mutant | -10/Materials Mutant | -10/Mines Mutant | -10/Exiles Mutant | -9/Mines Mutant | -8/Materials Scavenger-Mutant | -8/Storage Mutant | -7/Factory Mutant | -7/Lower Caves Mutant | -6/Zion Mutant | -5/Proximity Caves Mutant | -5/Factory Scavenger-Mutant | -5/Extension Commander-Mutant | -5/Cetus Scavenger-Mutant | -5/Archives Scavenger-Mutant | -5/Hub_04(d) Scavenger-Mutant | -4/Factory Scavenger-Scout | -3/Research Infiltrator-Sprinter | -2/Research Mutant | -1/Access Resources | -11 -10 -10 -10 -9 -8 -8 -7 -7 -6 -5 -5 -5 -5 -5 -5 -4 -3 -2 -1 ----------- Run | Scr Mat Min Exi Min Mat Sto Fac Low Zio Pro Fac Ext Cet Arc Hub Fac Res Res Acc Matter Collected 4788 | 200 197 209 . . 666 950 93 . 20 277 321 440 116 . 86 332 676 . 205 Remotely . | . . . . . . . . . . . . . . . . . . . . Salvage Created 11048 | 60 474 324 . . 866 1125 . . . 118 445 2163 688 . 732 1580 2367 . 106 Parts 337 | 1 28 18 . . 50 59 . . . 10 28 31 17 . 15 28 50 . 2 Haulers Intercepted 21 | . 2 . . . 2 4 . . . . . 1 . . 1 6 4 . 1 Recyclers Shooed 12 | . 4 . . . . 4 . . . . 1 1 . . . . 2 . . Parts Field Recycled . | . . . . . . . . . . . . . . . . . . . . Retrieved Matter . | . . . . . . . . . . . . . . . . . . . . Parts Self-Destructed 9 | . . . . . . . . . . 9 . . . . . . . . . Prevented 4 | . . . . . . . . . . 4 . . . . . . . . . Kills | -11 -10 -10 -10 -9 -8 -8 -7 -7 -6 -5 -5 -5 -5 -5 -5 -4 -3 -2 -1 ------- Run | Scr Mat Min Exi Min Mat Sto Fac Low Zio Pro Fac Ext Cet Arc Hub Fac Res Res Acc Combat Hostiles Destroyed 143 | . 9 15 . . 15 10 . . . 6 8 23 14 . . 16 27 . . Guns 45 | . 9 12 . . 12 10 . . . 1 . . . . . . 1 . . Cannons 1 | . . . . . . . . . . . . 1 . . . . . . . AOE 50 | . . 3 . . 3 . . . . 5 8 9 8 . . 6 8 . . Classes Destroyed 22 | 1 4 4 . . 4 1 . . . . 1 1 . . 1 1 4 . . Worker 19 | . . 1 . . . 2 . . . . 7 1 . . 2 1 5 . . Builder 4 | . . 1 . . 1 . . . . . 1 . . . 1 . . . . Tunneler 4 | . . 1 . . . . . . . . 1 . . . . 1 1 . . Hauler 21 | . 2 . . . 2 4 . . . . . 1 . . 1 6 4 . 1 Recycler 18 | 1 2 1 . . 1 4 . . . . 1 4 . . 4 . . . . Mechanic 1 | . . . . . . . . . . . . . . . . . 1 . . Operator 5 | . 1 . . . . 2 . . . . . 1 . . 1 . . . . Watcher 5 | . . . . . . 1 . . . . 1 . 2 . . . 1 . . Swarmer 47 | . 6 5 . . . . . . . 5 4 4 8 . . 5 10 . . Saboteur 1 | . . . . . . . . . . . . . . . . . 1 . . Grunt 39 | . 3 1 . . 9 5 . . . 1 . 6 . . . 7 7 . . Brawler 1 | . . . . . . . . . . . . . . . . . 1 . . Duelist 1 | . . . . . . . . . . . . . . . . . 1 . . Protector 1 | . . . . . . . . . . . . . . . . 1 . . . Sentry 14 | . . . . . 2 1 . . . . . 9 . . . 1 1 . . Specialist 5 | . . . . . 2 3 . . . . . . . . . . . . . Hunter 7 | . . . . . 1 . . . . . 2 2 . . . 2 . . . Programmer 6 | . . . . . . . . . . . 2 . . . . . 4 . . Heavy 4 | . . . . . 1 1 . . . . . . . . . . 2 . . Behemoth 3 | . . . . . . . . . . . . 2 . . . . 1 . . Cetus Guard 6 | . . . . . . . . . . . . . 6 . . . . . . Z-Light 1 | . . . . . . . . . . . . . . . 1 . . . . Assembled 9 | . . 9 . . . . . . . . . . . . . . . . . Best Kill Streak 16 | 1 6 8 . . 4 7 . . . 5 7 16 8 . 6 5 10 . 1 Combat Bots Only 15 | . 6 6 . . 4 3 . . . 5 2 15 8 . . 5 8 . . Max Kills in Single Turn 5 | 1 1 3 . . 2 1 . . . 3 5 4 4 . 4 3 3 . 1 Gunslinging . | . . . . . . . . . . . . . . . . . . . . Exploded 4 | . . 2 . . 2 . . . . 3 2 3 4 . . 3 2 . . Melee . | . . . . . . . . . . . . . . . . . . . . Uniques/NPCs Destroyed 1 | . . . . . . . . . . . . . . . . . 1 . . ME-RLN (-3/Research) Combat | -11 -10 -10 -10 -9 -8 -8 -7 -7 -6 -5 -5 -5 -5 -5 -5 -4 -3 -2 -1 -------- Run | Scr Mat Min Exi Min Mat Sto Fac Low Zio Pro Fac Ext Cet Arc Hub Fac Res Res Acc Damage Taken 18571 | . 448 724 . . 1833 904 . . . 533 2744 766 212 250 95 1200 4334 2495 2033 Core 5198 | . 60 79 . . 104 27 . . . 77 773 104 . . . 112 1019 1235 1608 Absorbed by Shields 1033 | . . . . . . 312 . . . 136 91 214 81 . . . 77 122 . Core Remaining (%) 55 | 100 . . . 44 . 76 . . . 89 . . . . 12 90 21 14 . Volleys Fired 389 | 4 49 45 . . 71 82 . . . 15 9 28 13 . 4 20 44 . 5 Largest 2 | 2 2 2 . . 2 2 . . . 2 2 1 1 . 1 1 2 . 1 Hottest 250 | 40 40 40 . . 50 50 . . . 75 250 250 250 . 250 250 250 . 40 Shots Fired 651 | 8 98 87 . . 139 164 . . . 28 10 27 13 . 5 20 47 . 5 Gun 537 | 8 98 85 . . 136 164 . . . 25 2 . . . . . 14 . 5 Cannon 100 | . . . . . . . . . . . 2 27 13 . 5 20 33 . . Launcher 14 | . . 2 . . 3 . . . . 3 6 . . . . . . . . Special . | . . . . . . . . . . . . . . . . . . . . Kinetic 537 | 8 98 85 . . 136 164 . . . 25 2 . . . . . 14 . 5 Thermal 100 | . . . . . . . . . . . 2 27 13 . 5 20 33 . . Explosive 14 | . . 2 . . 3 . . . . 3 6 . . . . . . . . Electromagnetic . | . . . . . . . . . . . . . . . . . . . . Robot Hit Streak 13 | 5 10 9 . . 13 12 . . . 9 12 8 4 . 3 9 7 . 2 Robot Miss Streak 13 | 1 5 4 . . 6 2 . . . 13 9 6 4 . 2 7 6 . 1 Penetration Max 1 | . . . . . . . . . . . . . . . . . . . 1 Secondary Targets 9 | . 5 2 . . 1 1 . . . . . . . . . . . . . Max Gunslinging Chain 1 | . 1 1 . . 1 1 . . . . . . . . . . . . . Capacitor 7 | . . . . . . . . . . . . . . . . . 7 . . Shots Hit Robots 463 | 7 61 56 . . 100 119 . . . 23 8 25 7 . 4 14 36 . 3 Core Hits 461 | 2 24 38 . . 37 36 . . . 13 58 65 38 . 16 49 84 . 1 Critical Kills 2 | . . . . . . . . . . . . . . . . . 1 . 1 Critical Parts Destroyed 8 | . 1 1 . . 1 . . . . . . . . . . . 3 . 2 Critical Strikes 10 | . 1 1 . . 1 . . . . . . . . . . . 4 . 3 Destroy 10 | . 1 1 . . 1 . . . . . . . . . . . 4 . 3 Melee Attacks 9 | . . . . . 9 . . . . . . . . . . . . . . Impact 9 | . . . . . 9 . . . . . . . . . . . . . . Slashing . | . . . . . . . . . . . . . . . . . . . . Piercing . | . . . . . . . . . . . . . . . . . . . . Sneak Attacks . | . . . . . . . . . . . . . . . . . . . . Combat Hostiles . | . . . . . . . . . . . . . . . . . . . . Follow-up Attacks . | . . . . . . . . . . . . . . . . . . . . Damage Inflicted 18295 | 67 585 691 . 2 2105 2065 . . . 838 1694 2795 1444 . 599 1849 3522 . 39 Guns 5322 | 67 585 492 . . 1600 2041 . . . 390 28 . . . . . 86 . 33 Cannons 2472 | . . . . . . . . . . . 31 912 282 . 184 454 609 . . Explosions 10229 | . . 194 . . 390 . . . . 448 1573 1883 1162 . 415 1395 2769 . . Melee 90 | . . . . . 90 . . . . . . . . . . . . . . Ramming 182 | . . 5 . 2 25 24 . . . . 62 . . . . . 58 . 6 Kinetic 5313 | 67 585 492 . . 1600 2041 . . . 390 19 . . . . . 86 . 33 Thermal 10259 | . . . . . . . . . . . 194 2795 1444 . 599 1849 3378 . . Explosive 2451 | . . 194 . . 390 . . . . 448 1419 . . . . . . . . Electromagnetic . | . . . . . . . . . . . . . . . . . . . . Impact 90 | . . . . . 90 . . . . . . . . . . . . . . Slashing . | . . . . . . . . . . . . . . . . . . . . Piercing . | . . . . . . . . . . . . . . . . . . . . Highest Corruption 11 | . . 2 2 2 . . . . . . 10 10 10 10 11 4 4 4 6 Average Corruption 5 | . . 2 2 2 . . . . . . 8 10 10 10 10 4 2 2 3 Corruption Purged . | . . . . . . . . . . . . . . . . . . . . Effects 96 | . . 7 5 1 . . . . . . 7 33 11 4 9 8 9 2 . Message Errors 30 | . . 1 1 1 . . . . . . 2 7 4 2 4 2 4 2 . Matter Fused 16 | . . . . . . . . . . . . 8 3 1 1 1 2 . . Heat Flow Errors 17 | . . 5 . . . . . . . . . 7 4 . 1 . . . . Energy Discharges 14 | . . 1 1 . . . . . . . 4 4 . . . 2 2 . . Data Loss (minor) 10 | . . . 3 . . . . . . . . 3 . . 1 3 . . . Data Loss (major) 4 | . . . . . . . . . . . . 2 . 1 1 . . . . Misfires 1 | . . . . . . . . . . . . . . . 1 . . . . Alerts 1 | . . . . . . . . . . . . 1 . . . . . . . Misdirections 1 | . . . . . . . . . . . 1 . . . . . . . . Weapon Failures 2 | . . . . . . . . . . . . 1 . . . . 1 . . Overload Shots . | . . . . . . . . . . . . . . . . . . . . Overflow Damage 140 | . . . . . 8 . . . . 12 9 18 13 . 18 7 55 . . Projectiles 26 | . . . . . . . . . . . . 8 . . 5 . 13 . . Explosions 95 | . . . . . 8 . . . . 12 9 10 13 . 13 7 23 . . Melee 19 | . . . . . . . . . . . . . . . . . 19 . . Knockbacks 3 | . . . . . 2 . . . . . . . . . . . 1 . . Impact 3 | . . . . . 2 . . . . . . . . . . . 1 . . Kinetic . | . . . . . . . . . . . . . . . . . . . . Secondary . | . . . . . . . . . . . . . . . . . . . . Self-Inflicted Damage 538 | . . . . . 112 . . . . 91 163 58 11 . 12 8 80 . 3 Shots 28 | . . . . . 3 . . . . 4 6 5 1 . 1 2 6 . . Rammed 21 | . . . . 1 5 2 . . . . 6 . . . . 1 4 . 2 Targets Rammed 22 | . . 1 . 1 5 2 . . . . 6 . . . . 1 4 . 2 Kicked . | . . . . . . . . . . . . . . . . . . . . Crushed 1 | . . 1 . . . . . . . . . . . . . . . . . Highest Temperature 542 | . 18 253 . . 12 3 . . . 54 202 333 198 . 130 285 542 92 . Average Temperature 106 | . 8 101 . . 3 3 . . . 17 80 108 105 . 64 98 127 50 . Received Heat Transfer 2256 | . 90 48 . . 648 200 . . . 45 264 143 31 . 18 126 475 150 18 Effects 11 | . . . . . . . . . . . 2 1 . . . . 8 . . Shutdowns 2 | . . . . . . . . . . . . . . . . . 2 . . Energy Bleed 1 | . . . . . . . . . . . . 1 . . . . . . . Interference 5 | . . . . . . . . . . . 2 . . . . . 3 . . Damage (minor) 3 | . . . . . . . . . . . . . . . . . 3 . . Siege Activations . | . . . . . . . . . . . . . . . . . . . . Robots Corrupted . | . . . . . . . . . . . . . . . . . . . . Combat Hostiles . | . . . . . . . . . . . . . . . . . . . . Parts Fried . | . . . . . . . . . . . . . . . . . . . . Impact Corruptions 1 | . . . . . . . . . . . . . . . . . 1 . . Robots Melted 63 | . . . . . . . . . . . . 17 8 . 2 13 23 . . Combat Hostiles 47 | . . . . . . . . . . . . 13 6 . . 10 18 . . Parts Melted 253 | . . . . . . 1 . . . . 6 70 22 . 12 41 101 . . Heat Transferred 54027 | . . . . . . . . . . . 1157 13725 8282 . 3120 9643 18100 . . Parts Sabotaged 2 | . . . . . . . . . . . . . . . . . 2 . . Parts Stolen . | . . . . . . . . . . . . . . . . . . . . Parts Stripped . | . . . . . . . . . . . . . . . . . . . . Power Chain Reactions . | . . . . . . . . . . . . . . . . . . . . Missiles Intercepted . | . . . . . . . . . . . . . . . . . . . . Alert | -11 -10 -10 -10 -9 -8 -8 -7 -7 -6 -5 -5 -5 -5 -5 -5 -4 -3 -2 -1 ------- Run | Scr Mat Min Exi Min Mat Sto Fac Low Zio Pro Fac Ext Cet Arc Hub Fac Res Res Acc Peak Influence 2553 | 5 253 175 . . 326 420 137 . . . 462 871 1222 503 669 1705 2553 1965 1200 Initial 1424 | . 3 . . . . 10 122 . . . 7 233 410 488 153 327 894 1424 1178 Average 597 | 1 122 43 . . 96 165 122 . . . 91 489 952 463 393 1049 1582 1651 1185 Maximum Alert Level 5 | . 1 . . . 1 2 . . . . 2 3 4 2 2 5 5 5 4 Low Security (%) 40 | 100 61 100 . 100 79 60 100 . . . 75 2 . . 31 . . . . Level 1 14 | . 38 . . . 20 35 . . . . 22 41 . . 9 5 . . . Level 2 10 | . . . . . . 4 . . . . 1 32 21 100 58 18 . . . Level 3 12 | . . . . . . . . . . . . 23 28 . . 31 37 . . Level 4 11 | . . . . . . . . . . . . . 49 . . 29 12 46 100 Level 5 10 | . . . . . . . . . . . . . . . . 15 49 35 . High Security . | . . . . . . . . . . . . . . . . . . 17 . Max Security . | . . . . . . . . . . . . . . . . . . . . Squads Dispatched 54 | . 3 1 . . 3 4 1 . . . 4 2 . . 4 7 19 6 . Investigation 12 | . 2 1 . . 1 . 1 . . . . . . . 1 2 1 3 . Extermination 3 | . . . . . . . . . . . . . . . . 1 2 . . Reinforcement 27 | . 1 . . . 2 4 . . . . 4 2 . . 1 3 7 3 . Assault 10 | . . . . . . . . . . . . . . . . 1 9 . . Garrison 2 | . . . . . . . . . . . . . . . 2 . . . . Intercept . | . . . . . . . . . . . . . . . . . . . . Construction Impeded 5 | . . . . . . . . . . . 1 1 . . . . 2 1 . Haulers Reinforced 7 | . . . . . . . . . . . 2 . . . 1 2 2 . . Active Scanning Responses . | . . . . . . . . . . . . . . . . . . . . Cargo Convoy Interrupts . | . . . . . . . . . . . . . . . . . . . . Stealth | -11 -10 -10 -10 -9 -8 -8 -7 -7 -6 -5 -5 -5 -5 -5 -5 -4 -3 -2 -1 --------- Run | Scr Mat Min Exi Min Mat Sto Fac Low Zio Pro Fac Ext Cet Arc Hub Fac Res Res Acc Distress Signals 50 | . 1 2 . . 4 3 . . . 23 2 2 2 . 2 1 3 5 . Communications Jammed 29 | . . . . . . . . . . . . . . . . . 29 . . Distress Signals 28 | . . . . . . . . . . . . . . . . . 28 . . Times Spotted 426 | . 12 20 . . 25 24 2 . . 12 34 36 19 1 9 51 121 46 14 Peak Tracking Total 23 | . 8 4 . . 6 4 2 . . 5 17 10 5 2 4 7 18 23 10 Tactical Retreats 43 | . 1 4 . . 1 1 . . . 2 5 . . 1 . 3 18 4 3 Traps | -11 -10 -10 -10 -9 -8 -8 -7 -7 -6 -5 -5 -5 -5 -5 -5 -4 -3 -2 -1 ------- Run | Scr Mat Min Exi Min Mat Sto Fac Low Zio Pro Fac Ext Cet Arc Hub Fac Res Res Acc Traps Triggered 16 | . 1 . . . 1 2 . . . 1 . . . . . 1 7 1 2 Indirectly . | . . . . . . . . . . . . . . . . . . . . Trap Hack Attempts . | . . . . . . . . . . . . . . . . . . . . Triggered . | . . . . . . . . . . . . . . . . . . . . Disarmed . | . . . . . . . . . . . . . . . . . . . . Reprogrammed . | . . . . . . . . . . . . . . . . . . . . Reused . | . . . . . . . . . . . . . . . . . . . . Traps Extracted . | . . . . . . . . . . . . . . . . . . . . Installed . | . . . . . . . . . . . . . . . . . . . . Triggered 1 | . . . . . . . . . . . . . . . . . 1 . . Machines | -11 -10 -10 -10 -9 -8 -8 -7 -7 -6 -5 -5 -5 -5 -5 -5 -4 -3 -2 -1 ---------- Run | Scr Mat Min Exi Min Mat Sto Fac Low Zio Pro Fac Ext Cet Arc Hub Fac Res Res Acc Machines Disabled 11 | . . . . . 1 1 . . . . . 2 1 . 1 3 2 . . Max in Single Turn 1 | . . . . . 1 1 . . . . . 1 1 . 1 1 1 . . Garrison Access 4 | . . . . . . . . . . . 1 . . . . 2 . 1 . Machines Sabotaged . | . . . . . . . . . . . . . . . . . . . . Garrisons Compromised . | . . . . . . . . . . . . . . . . . . . . Overloaded Fab Kills . | . . . . . . . . . . . . . . . . . . . . Fab Network Shutdowns . | . . . . . . . . . . . . . . . . . . . . Hacking | -11 -10 -10 -10 -9 -8 -8 -7 -7 -6 -5 -5 -5 -5 -5 -5 -4 -3 -2 -1 --------- Run | Scr Mat Min Exi Min Mat Sto Fac Low Zio Pro Fac Ext Cet Arc Hub Fac Res Res Acc Machines Accessed 46 | . 3 1 2 . 3 5 1 . 1 . 4 2 . 1 1 9 8 5 . Terminals 9 | . 3 . . . 1 5 . . . . . . . . . . . . . Fabricators 4 | . . . . . . . . . . . . . . . . 3 . 1 . Repair Stations 9 | . . . . . 1 . . . . . 1 1 . . . 2 2 2 . Recycling Units 7 | . . . . . . . . . . . 1 1 . . . 1 3 1 . Scanalyzers 5 | . . . . . 1 . . . . . 1 . . . . . 3 . . Garrison Access 7 | . . . . . . . 1 . . . 1 . . . 1 3 . 1 . Total Hacks 145 | . 14 1 2 . 11 14 2 . 4 . 20 4 . 25 3 20 16 9 . Successful 93 | . 10 1 2 . 10 8 . . 4 . 14 3 . 25 . 6 9 1 . Failed 51 | . 3 . . . 1 6 2 . . . 6 1 . . 3 14 7 8 . Catastrophic 7 | . . . . . . 1 . . . . . . . . . 2 1 3 . Database Lockouts 1 | . 1 . . . . . . . . . . . . . . . . . . Manual 154 | . 11 . 1 . 2 8 1 . . . 24 35 7 . 8 21 23 13 . Terminals 30 | . 14 . . . 2 14 . . . . . . . . . . . . . Fabricators 9 | . . . . . . . . . . . . . . . . 7 . 2 . Repair Stations 34 | . . . . . 4 . . . . . 15 3 . . . 5 3 4 . Recycling Units 9 | . . . . . . . . . . . 1 1 . . . 2 3 2 . Scanalyzers 18 | . . . . . 5 . . . . . 3 . . . . . 10 . . Garrison Access 13 | . . . . . . . 2 . . . 1 . . . 3 6 . 1 . Terminal Hacks 46 | . 7 1 2 . 1 6 . . 4 . . . . 25 . . . . . Record 26 | . . . 1 . . . . . . . . . . 25 . . . . . Part Schematic 4 | . . . . . . . . . 4 . . . . . . . . . . Robot Analysis 4 | . 4 . . . . . . . . . . . . . . . . . . Prototype ID Bank 1 | . 1 . . . . . . . . . . . . . . . . . . Open Door 2 | . . 1 . . . 1 . . . . . . . . . . . . . Alert Level 1 | . . . . . . 1 . . . . . . . . . . . . . Unreport Threat 6 | . 2 . . . 1 3 . . . . . . . . . . . . . Hauler Manifests 1 | . . . . . . 1 . . . . . . . . . . . . . EX-Prototype ID Bank 1 | . . . 1 . . . . . . . . . . . . . . . . Fabricator Hacks 2 | . . . . . . . . . . . . . . . . 2 . . . Load Schematic 2 | . . . . . . . . . . . . . . . . 2 . . . Repair Station Hacks 19 | . . . . . 4 . . . . . 9 2 . . . 2 2 . . Scan Component 10 | . . . . . 2 . . . . . 4 1 . . . 2 1 . . Repair 8 | . . . . . 2 . . . . . 4 1 . . . . 1 . . Refit 1 | . . . . . . . . . . . 1 . . . . . . . . Recycling Unit Hacks 4 | . . . . . . . . . . . 1 1 . . . . 2 . . Retrieve Components 4 | . . . . . . . . . . . 1 1 . . . . 2 . . Scanalyzer 13 | . . . . . 5 . . . . . 3 . . . . . 5 . . Insert Component 8 | . . . . . 3 . . . . . 2 . . . . . 3 . . Analyze 5 | . . . . . 2 . . . . . 1 . . . . . 2 . . Garrison Access Hacks 1 | . . . . . . . . . . . 1 . . . . . . . . Seal Access 1 | . . . . . . . . . . . 1 . . . . . . . . Unauthorized Hacks 8 | . 3 . . . . 2 . . . . . . . . . 2 . 1 . Terminals 5 | . 3 . . . . 2 . . . . . . . . . . . . . Botnet 4 | . 2 . . . . 2 . . . . . . . . . . . . . Operators 1 | . 1 . . . . . . . . . . . . . . . . . . Fabricators . | . . . . . . . . . . . . . . . . . . . . Repair Stations . | . . . . . . . . . . . . . . . . . . . . Recycling Units . | . . . . . . . . . . . . . . . . . . . . Scanalyzers . | . . . . . . . . . . . . . . . . . . . . Garrison Access 3 | . . . . . . . . . . . . . . . . 2 . 1 . Jam 3 | . . . . . . . . . . . . . . . . 2 . 1 . Data Cores Recovered . | . . . . . . . . . . . . . . . . . . . . Used . | . . . . . . . . . . . . . . . . . . . . Hacking Detections 35 | . 3 . . . 3 4 1 . . . 3 1 . . 1 8 7 4 . Full Trace Events 6 | . 2 . . . . . 1 . . . . . . . 1 . . 2 . Feedback Events 2 | . . . . . . . . . . . . . . . 1 . . 1 . Corruption 2 | . . . . . . . . . . . . . . . 1 . . 1 . Feedback Blocked . | . . . . . . . . . . . . . . . . . . . . Robot Schematics Acquired 4 | . . . . . . . . . . . . 4 . . . . . . . Robots Built . | . . . . . . . . . . . . . . . . . . . . Matter . | . . . . . . . . . . . . . . . . . . . . Time . | . . . . . . . . . . . . . . . . . . . . Total Robot Build Rating . | . . . . . . . . . . . . . . . . . . . . Part Schematics Acquired 18 | . . . . . 2 . . . 4 . 1 9 . . . . 2 . . Parts Built . | . . . . . . . . . . . . . . . . . . . . Matter . | . . . . . . . . . . . . . . . . . . . . Time . | . . . . . . . . . . . . . . . . . . . . Total Part Build Rating . | . . . . . . . . . . . . . . . . . . . . Parts Repaired 8 | . . . . . 2 . . . . . 4 1 . . . . 1 . . Time 362 | . . . . . 64 . . . . . 240 22 . . . . 36 . . Parts Recycled . | . . . . . . . . . . . . . . . . . . . . Recycled Matter . | . . . . . . . . . . . . . . . . . . . . Retrieved Matter . | . . . . . . . . . . . . . . . . . . . . Retrieved Components 8 | . . . . . . . . . . . 1 2 . . . . 5 . . Parts Scanalyzed 5 | . . . . . 2 . . . . . 1 . . . . . 2 . . Part Schematics Acquired 5 | . . . . . 2 . . . . . 1 . . . . . 2 . . Parts Damaged 1 | . . . . . . . . . . . . . . . . . 1 . . Bothacking | -11 -10 -10 -10 -9 -8 -8 -7 -7 -6 -5 -5 -5 -5 -5 -5 -4 -3 -2 -1 ------------ Run | Scr Mat Min Exi Min Mat Sto Fac Low Zio Pro Fac Ext Cet Arc Hub Fac Res Res Acc Used RIF Installer . | . . . . . . . . . . . . . . . . . . . . Robots Hacked . | . . . . . . . . . . . . . . . . . . . . Non-combat . | . . . . . . . . . . . . . . . . . . . . Combat . | . . . . . . . . . . . . . . . . . . . . Robot Hacks Applied . | . . . . . . . . . . . . . . . . . . . . Relay Couplers Released . | . . . . . . . . . . . . . . . . . . . . Robots Rewired 16 | . . . . . . . . . . . . 16 . . . . . . . Allies Hacked 8 | . . . . . . . . . . . . . . . . . 8 . . Hacks Repelled . | . . . . . . . . . . . . . . . . . . . . Allies | -11 -10 -10 -10 -9 -8 -8 -7 -7 -6 -5 -5 -5 -5 -5 -5 -4 -3 -2 -1 -------- Run | Scr Mat Min Exi Min Mat Sto Fac Low Zio Pro Fac Ext Cet Arc Hub Fac Res Res Acc Total Allies 88 | . . . . . . 10 . . 4 . 3 33 10 . 5 4 16 3 . Largest Group 26 | . . . . . . 10 3 . 4 4 1 16 26 18 5 6 6 2 . Highest-Rated Group 1360 | . . . . . . 173 61 . 152 152 30 595 1360 1028 475 541 517 77 . Highest-Rated Ally 165 | . . . . . . 29 29 . 39 39 30 156 165 165 165 165 165 50 . Zionite Dispatches 23 | . . . . . . . . . . . 3 4 3 . 2 3 5 3 . Heavy 2 | . . . . . . . . . . . . . . . 1 . 1 . . Light 3 | . . . . . . . . . . . . 2 . . 1 . . . . Recon 3 | . . . . . . . . . . . . 1 . . . 1 1 . . Fire 1 | . . . . . . . . . . . . 1 . . . . . . . Hacker 3 | . . . . . . . . . . . . . 1 . . 1 1 . . Demo 1 | . . . . . . . . . . . . . . . . . . 1 . Hero 2 | . . . . . . . . . . . . . 1 . . . 1 . . Thermal Resupply 1 | . . . . . . . . . . . . . . . . . 1 . . Melee Resupply 1 | . . . . . . . . . . . . . . . . 1 . . . Heavy Resupply 2 | . . . . . . . . . . . 2 . . . . . . . . Infowar Resupply 3 | . . . . . . . . . . . . . 1 . . . . 2 . Hacking Resupply 1 | . . . . . . . . . . . 1 . . . . . . . . Total Orders 15 | . . . . . . . . . . . 5 . 2 . . 5 1 2 . STAY 1 | . . . . . . . . . . . . . . . . . . 1 . FOLLOW 1 | . . . . . . . . . . . . . 1 . . . . . . DROP 7 | . . . . . . . . . . . 3 . 1 . . 1 1 1 . EXPLORE 4 | . . . . . . . . . . . 1 . . . . 3 . . . RETURN 2 | . . . . . . . . . . . 1 . . . . 1 . . . Ally Attacks 441 | . . . . . . 82 2 . . 31 . 100 18 1 54 43 106 4 . Total Damage 12133 | . . . . . . 1161 40 . . 491 . 2162 748 35 1455 2049 3134 858 . Kills 93 | . . . . . . 16 . . . 2 . 12 4 1 16 20 19 3 . Allies Corrupted 1 | . . . . . . . . . . . . . . . . . 1 . . Allies Melted 1 | . . . . . . . . . . . 1 . . . . . . . . Intel | -11 -10 -10 -10 -9 -8 -8 -7 -7 -6 -5 -5 -5 -5 -5 -5 -4 -3 -2 -1 ------- Run | Scr Mat Min Exi Min Mat Sto Fac Low Zio Pro Fac Ext Cet Arc Hub Fac Res Res Acc Robot Analysis Total 4 | . 4 . . . . . . . . . . . . . . . . . . Derelict Logs Recovered 3 | . . 1 . . . . . . 1 1 . . . . . . . . . Drone Launches 5 | . . . . . . . . . . . 1 . . . . 4 . . . Drone Recoveries 5 | . . . . . . . . . . . 1 . . . . 4 . . . Zionite Intel Received 15 | . . . . . . . . . . . 4 6 . . . 2 2 1 . Branch Access 2 | . . . . . . . . . . . 1 . . . . . . 1 . Emergency Access 3 | . . . . . . . . . . . . 1 . . . 1 1 . . Component Stockpiles 1 | . . . . . . . . . . . 1 . . . . . . . . Prototype Schematics 1 | . . . . . . . . . . . . 1 . . . . . . . Unaware Schematics 1 | . . . . . . . . . . . . 1 . . . . . . . Unaware Analyses 1 | . . . . . . . . . . . . 1 . . . . . . . Trap Installations 1 | . . . . . . . . . . . . 1 . . . . . . . Active Terminals 3 | . . . . . . . . . . . 1 1 . . . . 1 . . Active Garrisons 1 | . . . . . . . . . . . 1 . . . . . . . . Depthwide Sectors/0 1 | . . . . . . . . . . . . . . . . 1 . . . Exploration | -11 -10 -10 -10 -9 -8 -8 -7 -7 -6 -5 -5 -5 -5 -5 -5 -4 -3 -2 -1 ------------- Run | Scr Mat Min Exi Min Mat Sto Fac Low Zio Pro Fac Ext Cet Arc Hub Fac Res Res Acc Turns Passed 10032 | 19 415 1123 563 231 862 710 95 4 493 523 618 952 354 129 245 899 1282 299 216 Spaces Moved 10353 | 7 213 495 215 88 281 281 184 10 979 517 583 1070 404 79 192 1664 1978 766 347 Core 721 | . . . . . . . . . . . 169 210 . . . . . 43 299 Treads 1029 | . . 274 215 88 211 241 . . . . . . . . . . . . . Legs 57 | 7 50 . . . . . . . . . . . . . . . . . . Wheels 494 | . 163 221 . . 70 40 . . . . . . . . . . . . . Hover 7299 | . . . . . . . 184 10 979 517 414 860 404 79 192 1664 1967 2 27 Flight 753 | . . . . . . . . . . . . . . . . . 11 721 21 Fastest Speed 19 | 120 95 115 260 260 145 130 34 34 34 34 34 40 44 44 50 41 31 19 40 Average Speed 66 | 120 119 197 260 260 171 159 35 34 34 34 42 51 44 99 96 45 46 32 53 Slowest Speed 270 | 120 200 260 260 260 270 267 94 34 34 34 170 112 44 176 176 55 150 200 150 Overloaded Moves 22 | . . . . . . . . . . . . . . . . . . 22 . Propulsion Burnouts . | . . . . . . . . . . . . . . . . . . . . Robots Hopped 17 | . . . . . . . . . . . . 1 . . . . 4 10 2 Cave-ins Triggered . | . . . . . . . . . . . . . . . . . . . . Exploration Rate (%) 42 | 2 42 75 59 30 22 52 3 3 88 55 17 86 70 79 15 49 62 30 11 Regions Visited 19 Branch Regions 11 Pre-discovered Areas 8 | . . . 1 . . . . . 2 . . . . . . 5 . . . Known Exits Taken 7 | . . . . . 1 . . . . . 1 . 1 1 1 1 1 . . Unknown Exits Taken 12 | 1 1 1 1 1 . 1 1 1 1 1 . 1 . . . . . 1 . Scrap Searched 6 | . . 2 . . . . . . 3 1 . . . . . . . . . Spaces Dug 33 | . . . . . . . . . . . 33 . . . . . . . . Terrain Destroyed 183 | . . 12 . . 22 . . . . 39 107 2 1 . . . . . . Melee . | . . . . . . . . . . . . . . . . . . . . Projectile 1 | . . . . . . . . . . . 1 . . . . . . . . AOE 182 | . . 12 . . 22 . . . . 39 106 2 1 . . . . . . Terrain Rammed . | . . . . . . . . . . . . . . . . . . . . Walls Destroyed . | . . . . . . . . . . . . . . . . . . . . Machines Disabled . | . . . . . . . . . . . . . . . . . . . . Actions | -11 -10 -10 -10 -9 -8 -8 -7 -7 -6 -5 -5 -5 -5 -5 -5 -4 -3 -2 -1 --------- Run | Scr Mat Min Exi Min Mat Sto Fac Low Zio Pro Fac Ext Cet Arc Hub Fac Res Res Acc Total 12944 | 10 290 570 222 90 546 447 216 9 1140 840 930 1438 568 130 244 1782 2303 798 371 Wait 1319 | . 2 4 . . 83 11 10 . 154 292 289 151 137 52 26 24 70 14 . Move 10305 | 6 212 494 214 87 280 280 183 9 978 516 582 1067 403 78 191 1663 1972 746 344 Hop 12 | . . . . . . . . . . . . 1 . . . . 1 9 1 Pick Up 144 | . 14 13 3 1 25 14 3 . 4 1 6 6 5 . 7 15 24 . 3 Fast Attach 156 | . 2 1 . . 17 15 2 . . 1 18 20 1 . 5 16 32 19 7 Attach 56 | . 4 5 . . 9 2 8 . . . 4 4 1 . . 4 11 1 3 Detach 13 | . . . . . 1 1 . . . . 2 3 . . . 1 1 1 3 Swap 95 | . 2 4 1 . 15 8 1 . . 3 3 6 2 . 5 16 28 1 . Drop 201 | . 5 3 4 1 31 32 9 . 4 2 11 13 6 . 6 22 44 5 3 Fire 389 | 4 49 45 . . 71 82 . . . 15 9 28 13 . 4 20 44 . 5 Melee 9 | . . . . . 9 . . . . . . . . . . . . . . Ram 13 | . . . . . . . . . . . 6 . . . . 1 4 . 2 Kick . | . . . . . . . . . . . . . . . . . . . . Crush 9 | . . 1 . 1 5 2 . . . . . . . . . . . . . Escape Stasis 84 | . . . . . . . . . . 10 . . . . . . 72 2 . Rewire 139 | . . . . . . . . . . . . 139 . . . . . . . Trap . | . . . . . . . . . . . . . . . . . . . . Miscellaneous . | . . . . . . . . . . . . . . . . . . . . Route ------- -11/Scrapyard -10/Materials -10/Mines (discovered 2 exits: [*Mat] / *Exi) -10/Exiles -9/Mines (discovered 2 exits: *Mat x2) -8/Materials -8/Storage -7/Factory -7/Lower Caves -6/Zion -5/Proximity Caves -5/Factory (discovered 4 exits: Upp x2 / *Ext x2) -5/Extension (discovered 2 exits: *Fac / *Cet) -5/Cetus (discovered 2 exits: *Fac / *Arc) -5/Archives -5/Hub_04(d) -4/Factory (discovered 2 exits: *Res x2) -3/Research -2/Research (discovered 3 exits: [*Acc] / Tes x2) -1/Access History --------- Turn | Location | Event 1 | -11/Scrapyard | Discovered new exit (range 3) 20 | -11/Scrapyard | Entered Materials 225 | -10/Materials | Lost 3 parts (1p1n1w) 318 | -10/Materials | Build established: Mutant 359 | -10/Materials | Central database locked down 411 | -10/Materials | Discovered new exit (range 15) 435 | -10/Materials | Entered Mines 578 | -10/Mines | Met a Derelict shopkeep closing up shop 704 | -10/Mines | Assembled infested the area 810 | -10/Mines | Lost 3 parts (1p1n1u) 867 | -10/Mines | Core integrity fell below 50% 1090 | -10/Mines | Discovered new exit (range 10) 1545 | -10/Mines | Deemed a non-threat by the Exiles lab entrance 1548 | -10/Mines | Discovered new exit (range 5) 1558 | -10/Mines | Entered Exiles 1621 | -10/Exiles | Met 8R-AWN 1665 | -10/Exiles | Met EX-HEX 1735 | -10/Exiles | Met EX-BIN 1772 | -10/Exiles | Aligned with FarCom system 1774 | -10/Exiles | Given EX-Vault access code 1834 | -10/Exiles | Opened EX-Vault 1850 | -10/Exiles | Found Firepult 1856 | -10/Exiles | Found Skeleton Box 1873 | -10/Exiles | Found 0b10 Alert Chip 1924 | -10/Exiles | Warned to stay clear of 0b10 Research branches 2002 | -10/Exiles | Met EX-DEC 2012 | -10/Exiles | Learned location of Zion (-6) 2098 | -10/Exiles | Discovered new exit (range 10) 2121 | -10/Exiles | Stole three prototypes: 0b10 Alert Chip, Skeleton Box, Firepult 2121 | -10/Exiles | Entered Mines 2128 | -9/Mines | Received a Rocket Launcher from a helpful Derelict 2248 | -9/Mines | Discovered new exit (range 14) 2271 | -9/Mines | Discovered new exit (range 10) 2352 | -9/Mines | Entered Materials 2352 | -8/Materials | Evolved 4 slots: Propulsion x2, Utility x2 2353 | -8/Materials | Identified exit to Storage 2413 | -8/Materials | Repaired Hrd. Medium Armor Plating 2440 | -8/Materials | Repaired Lgt. Treads 3210 | -8/Materials | Build established: Scavenger-Mutant 3214 | -8/Materials | Entered Storage 3232 | -8/Storage | Found Prototype Launcher 3232 | -8/Storage | Identified Scatter Rocket Array 3236 | -8/Storage | Found Scatter Rocket Array 3250 | -8/Storage | Found Scatter Rocket Array 3255 | -8/Storage | Found Scatter Rocket Array 3617 | -8/Storage | Assisted by bots powering up and referring to "LRC-V3" 3874 | -8/Storage | Discovered new exit (range 15) 3924 | -8/Storage | Entered Factory 3924 | -7/Factory | Accompanied by 3 allies 3924 | -7/Factory | Evolved 2 slots: Propulsion x1, Utility x1 3926 | -7/Factory | FarCom data flow suspended 4010 | -7/Factory | Discovered new exit (range 15) 4019 | -7/Factory | Entered Lower Caves 4020 | -7/Lower Caves | A Derelict revealed a hidden shortcut to a safe place 4023 | -7/Lower Caves | Entered Zion 4049 | -6/Zion | Discovered new exit (range 13) 4100 | -6/Zion | Learned 8 Factory zone layouts 4160 | -6/Zion | Given the Hacking Drone Bay 4160 | -6/Zion | Found Prototype Device 4219 | -6/Zion | Build established: Mutant 4260 | -6/Zion | Imprinted 4262 | -6/Zion | Declared Zion's savior 4319 | -6/Zion | Acquired unknown access codes intercepted by a Zionite 4516 | -6/Zion | Entered Proximity Caves 4516 | -5/Proximity Caves | Accompanied by 4 allies 4536 | -5/Proximity Caves | Attracted the attention of an 0b10 checkpoint 4647 | -5/Proximity Caves | Learned 4 Factory zone layouts 4778 | -5/Proximity Caves | Received a Behemoth hack from an annoying Tinkerer 4931 | -5/Proximity Caves | Spotted B-75 Beast 5037 | -5/Proximity Caves | Discovered new exit (range 5) 5039 | -5/Proximity Caves | Entered Factory 5039 | -5/Factory | Evolved 4 slots: Power x1, Propulsion x1, Utility x2 5054 | -5/Factory | Identified Hacking Drone Bay 5165 | -5/Factory | Repaired Aerolev Unit 5227 | -5/Factory | Repaired Aerolev Unit 5288 | -5/Factory | Repaired Aerolev Unit 5350 | -5/Factory | Repaired Aerolev Unit? 5374 | -5/Factory | Retrieved Zion intel report: Branch Access 5374 | -5/Factory | Identified exit to Upper Caves 5374 | -5/Factory | Identified exit to Extension 5385 | -5/Factory | Retrieved Zion intel report: Component Stockpiles 5391 | -5/Factory | Retrieved Zion intel report: Active Garrisons 5507 | -5/Factory | Retrieved Zion intel report: Active Terminals 5508 | -5/Factory | Zion Heavy Resupply teleported in 5545 | -5/Factory | Core integrity fell below 50% 5551 | -5/Factory | System corruption reached 10% 5572 | -5/Factory | Zion Heavy Resupply teleported in 5593 | -5/Factory | Lost 14 parts (2p7n4u1w) 5605 | -5/Factory | Zion Hacking Resupply teleported in 5657 | -5/Factory | Entered Extension 5687 | -5/Extension | Remotely autohacked Sealed Heavy Doors 5693 | -5/Extension | Retrieved Zion intel report: Trap Installations 5694 | -5/Extension | Zion Light squad teleported in 5714 | -5/Extension | Zion Light squad teleported in 5715 | -5/Extension | Rescued a captive Derelict 5722 | -5/Extension | Remotely autohacked Sealed Heavy Doors 5723 | -5/Extension | Rescued a captive Derelict 5823 | -5/Extension | Remotely autohacked Sealed Heavy Doors 5823 | -5/Extension | Rescued a captive Derelict 5830 | -5/Extension | Rescued a captive Derelict 5831 | -5/Extension | Zion Recon squad teleported in 5845 | -5/Extension | Retrieved Zion intel report: Emergency Access 5885 | -5/Extension | Found Prototype Protection 5885 | -5/Extension | Identified Zio. Weapon Casing 5978 | -5/Extension | Found Zio. Weapon Casing 5981 | -5/Extension | Spotted B-75 Beast 5984 | -5/Extension | Spotted B-75 Beast 5987 | -5/Extension | Core integrity fell below 20% 6005 | -5/Extension | Remotely autohacked Sealed Heavy Doors 6005 | -5/Extension | Rescued a captive Derelict 6006 | -5/Extension | Rescued a captive Derelict 6009 | -5/Extension | Destroyed B-75 Beast 6020 | -5/Extension | Destroyed B-75 Beast 6032 | -5/Extension | Disrupted transfer network 6039 | -5/Extension | Retrieved Zion intel report: Unaware Schematics 6082 | -5/Extension | Retrieved Zion intel report: Unaware Analyses 6162 | -5/Extension | Build established: Scavenger-Mutant 6170 | -5/Extension | Destroyed 15 combat bots 6348 | -5/Extension | Remotely autohacked Sealed Heavy Doors 6349 | -5/Extension | Rescued A7 6351 | -5/Extension | Retrieved Zion intel report: Active Terminals 6481 | -5/Extension | Discovered new exit (range 16) 6481 | -5/Extension | Discovered new exit (range 15) 6512 | -5/Extension | Retrieved Zion intel report: Prototype Schematics 6513 | -5/Extension | Zion Fire squad teleported in 6538 | -5/Extension | Repaired Imp. Medium Armor Plating 6597 | -5/Extension | Build established: Commander-Mutant 6609 | -5/Extension | Entered Cetus 6609 | -5/Cetus | Accompanied by 16 allies (A7) 6614 | -5/Cetus | Acquired a Cetus Manufacturing Module code from A7 6617 | -5/Cetus | Spotted Cetus Guard 6617 | -5/Cetus | Spotted Cetus Guard 6617 | -5/Cetus | Spotted Cetus Guard 6617 | -5/Cetus | Spotted Cetus Guard 6622 | -5/Cetus | Destroyed Cetus Guard 6622 | -5/Cetus | Destroyed Cetus Guard 6623 | -5/Cetus | Destroyed Cetus Guard 6624 | -5/Cetus | Destroyed Cetus Guard 6638 | -5/Cetus | Zion hero teleported in (P1-3CE) 6640 | -5/Cetus | Zion Hacker squad teleported in 6648 | -5/Cetus | Started Cetus Manufacturing Module 6651 | -5/Cetus | Zion Infowar Resupply teleported in 6669 | -5/Cetus | Discovered new exit (range 15) 6673 | -5/Cetus | Manufactured an Enhanced Grunt 6677 | -5/Cetus | Spotted Cetus Guard 6677 | -5/Cetus | Spotted Cetus Guard 6683 | -5/Cetus | Spotted Cetus Guard 6684 | -5/Cetus | Destroyed Cetus Guard 6685 | -5/Cetus | Spotted Cetus Guard 6686 | -5/Cetus | Allies destroyed Cetus Guard 6688 | -5/Cetus | Destroyed Cetus Guard 6690 | -5/Cetus | Discovered new exit (range 16) 6691 | -5/Cetus | Allies destroyed Cetus Guard 6695 | -5/Cetus | Scared off Revision 17 6698 | -5/Cetus | Manufactured an Enhanced Grunt 6723 | -5/Cetus | Manufactured an Enhanced Grunt 6748 | -5/Cetus | Manufactured an Enhanced Grunt 6773 | -5/Cetus | Manufactured an Enhanced Grunt 6799 | -5/Cetus | Identified exit to Archives 6811 | -5/Cetus | Destroyed 8 combat bots 6963 | -5/Cetus | Entered Archives 6963 | -5/Archives | Accompanied by 18 allies (P1-3CE) 6968 | -5/Archives | Met Zhirov 6974 | -5/Archives | Reinforcements dispatched to Archives 6974 | -5/Archives | Read partially decrypted archive contents 6975 | -5/Archives | Discovered new exit (range 15) 6982 | -5/Archives | Identified exit to Hub_04(d) 7035 | -5/Archives | Zhirov detonated Archives 7066 | -5/Archives | Lost 4 parts (3n1u) 7092 | -5/Archives | Entered Hub_04(d) 7092 | -5/Hub_04(d) | Accompanied by 1 ally (P1-3CE) 7111 | -5/Hub_04(d) | Zion Light squad teleported in 7171 | -5/Hub_04(d) | Garrison activated, responded to threat 7229 | -5/Hub_04(d) | Zion Heavy squad teleported in 7259 | -5/Hub_04(d) | Found Zio. Weapon Casing 7299 | -5/Hub_04(d) | Discovered new exit (range 8) 7312 | -5/Hub_04(d) | Identified exit to Factory 7326 | -5/Hub_04(d) | Build established: Scavenger-Mutant 7337 | -5/Hub_04(d) | Entered Factory 7337 | -4/Factory | Accompanied by 4 allies (P1-3CE) 7337 | -4/Factory | Evolved 2 slots: Utility x2 7399 | -4/Factory | Found Zio. Weapon Casing 7759 | -4/Factory | Retrieved Zion intel report: Depthwide Sectors/0 7760 | -4/Factory | Zion Hacker squad teleported in 7837 | -4/Factory | First assault squad dispatched 7884 | -4/Factory | Discovered new exit (range 14) 7895 | -4/Factory | Zion Melee Resupply teleported in 7899 | -4/Factory | Found Prototype Slashing Weapon 7899 | -4/Factory | Identified Vibroblade 7912 | -4/Factory | Identified exit to Research 7973 | -4/Factory | Zion Recon squad teleported in 8081 | -4/Factory | Retrieved Zion intel report: Emergency Access 8203 | -4/Factory | Spotted B-86 Titan 8212 | -4/Factory | Discovered exit to Research (range 13) 8236 | -4/Factory | Entered Research 8236 | -3/Research | Evolved 2 slots: Utility x2 8304 | -3/Research | Found Prototype Processor 8304 | -3/Research | Identified Spectral Analyzer 8392 | -3/Research | Retrieved Zion intel report: Active Terminals 8393 | -3/Research | Zion hero teleported in (ME-RLN) 8424 | -3/Research | Spotted B-86 Titan 8486 | -3/Research | First assault squad dispatched 8561 | -3/Research | Zion Hacker squad teleported in 8606 | -3/Research | Repaired Centrium Medium Armor Plating 8623 | -3/Research | ME-RLN assimilated hostile G-67 Veteran 8646 | -3/Research | Lost 4 parts (1n3u) 8773 | -3/Research | Found Prototype Device 8773 | -3/Research | Identified Exp. Transmission Jammer 8789 | -3/Research | Zion Heavy squad teleported in 8835 | -3/Research | Spotted B-86 Titan 8837 | -3/Research | Zion Thermal Resupply teleported in 8837 | -3/Research | Destroyed B-86 Titan 8842 | -3/Research | Zion Recon squad teleported in 8867 | -3/Research | Destroyed 8 combat bots 8875 | -3/Research | Found Unknown Device 8875 | -3/Research | Identified Quantum Capacitor 9011 | -3/Research | Found Prototype Slashing Weapon 9011 | -3/Research | Identified Nanosword 9027 | -3/Research | Found Gamma Bomb Array 9151 | -3/Research | ME-RLN assimilated hostile W-44 Eye 9194 | -3/Research | Retrieved Zion intel report: Emergency Access 9252 | -3/Research | ME-RLN assimilated hostile Y-72 Warden 9367 | -3/Research | Spotted B-86 Titan 9421 | -3/Research | Lost 13 parts (2p5n5u1w) 9491 | -3/Research | Core integrity fell below 50% 9492 | -3/Research | Discovered new exit (range 15) 9501 | -3/Research | Identified exit to Research 9518 | -3/Research | Entered another Research area 9518 | -2/Research | Evolved 2 slots: Propulsion x2 9544 | -2/Research | Lost 6 parts (1n3u2w) 9594 | -2/Research | Retrieved Zion intel report: Branch Access 9594 | -2/Research | Identified exit to Testing 9595 | -2/Research | Zion Infowar Resupply teleported in 9600 | -2/Research | Found Prototype Device 9600 | -2/Research | Identified Exp. ECM Suite 9610 | -2/Research | Spotted B-90 Cyclops 9758 | -2/Research | Zion Demo squad teleported in 9764 | -2/Research | P-80 Master assimilated allied JU-BKN(d) 9765 | -2/Research | High security lockdown imminent 9775 | -2/Research | Zion Infowar Resupply teleported in 9786 | -2/Research | Spotted B-90 Cyclops 9810 | -2/Research | Core integrity fell below 50% 9813 | -2/Research | Discovered new exit (range 6) 9817 | -2/Research | Entered Access 9817 | -1/Access | Evolved 2 slots: Weapon x2 9827 | -1/Access | Lost 17 parts (1p9n7u) 10015 | -1/Access | Core integrity fell below 50% 10029 | -1/Access | Core integrity fell below 20% 10033 | -1/Access | Destroyed by S-43 Plague with Heavy Machine Gun Last Messages --------------- 09985_ Cmb. Gravmag System destroyed. 09987_ Acquired Q-thruster. 09994_ >> Machine Analyzer network decryption results: 09994_ Terminal x1 09994_ Q-thruster destroyed. 10002_ Triggered Segregator Trap. 10002_ Arcs of energy rise from the floor. 10002_ Triangulator blown off. 10002_ Adv. Core Analyzer blown off. 10008_ Acquired Nuclear Pulse Array. 10011_ Nuclear Pulse Array destroyed. 10012_ Sealed Freight Elevator disabled. 10013_ Triggered Segregator Trap. 10013_ Arcs of energy rise from the floor. 10013_ Adv. Core Analyzer blown off. 10013_ Machine Analyzer blown off. 10025_ P-80 Master resets S-43 Plague, system corruption cleaned. 10029_ Slammed into P-80 Master. 10030_ Detecting system override signal. 10031_ Terminal disabled. Map ----- +----------------------------------------------------+ | ?????????????????????????????????????????????????? | | ?????????????????????????????????????????????????? | | ?????????????????????????????????????????????????? | | ?????????????????????????????????????????????????? | | ?????????????????????????????????????????????????? | | ?????????????????????????????????????????????????? | | ?????????????????????????????????????????????????? | | ?????????????????????????????????????????????????? | | ??????#########??????????????????????????????????? | | ??????# ???????????????????????????????? | | ??????# ???????????????????????????????? | | ??????# ???????????????????????????????? | | ??????+ ????????????????????????????????? | | ??????# ????????????????????????????????? | | ??????# ?????????????????????????????????? | | ??????# ??????????????????????????????????? | | ??????# #??????###+#####???????????????????? | | ??????# #??????# ???????????????????? | | ??????# #??????# ???????????????????? | | ??????# #??????# """""?????????????????? | | ####??# #??????# """""?????????????????? | | ??# #??????# """""?????????????????? | | ?# ######## """"" #??????????????? | | ?# # """"" #??????????????? | | # # """"" #??????????????? | | # #p @ #??????????????? | | + s p/ !#??????????????# | | " # s # "T"" #??????????????# | | "" # s # """"" #??????????????# | | " ?# s ##############??????????????# | | ?#### ######+##+#???????????????????????????# | | ?????# # = ???????????????????????????????## | | ?????# # ???????????????????????????????+ | | ########## # ???????????????????????????????# | | ## # """"""??????????????????????????# | | ## # """"""??????????????????????????# | | ## # """"""??????????????????????????+ | | ## # """"""??????????????????????????# | | #+######## # """"""??????????????????????????# | | # ?????????????########??????????# | | # * ?????????????# #??????????# | | #? ??????????????# #??????????# | | " """ #? ??????????????# #??????????# | | """"" #?#+#??????????????# #??????????# | | ! """"" #?# #??????????????# #??????????# | | """"" #?# #??????????????# #??????????# | | """"" #?# #??????????????# ############ | | !""""" #?# #??????#######?# | | ### ######## #?# ###### | | ! ### #??? | +----------------------------------------------------+ Best States ------------- Heat Dissipation 124 Coolant Potential 100 Energy Generation 62 Energy Capacity 840 Matter Stores 300 Matter Capacity 300 Sight Range 24 Robot Scan Range 18 Terrain Scan Range 20 Terrain Scan Density 210 Jamming Range 22 Cloak Strength 2 Power Amplification 120 Additional Mass Support 9 Armor Coverage 400 Resistance: KI 30 Propulsion Shielding 66 Utility Shielding 66 Weapon Shielding 100 Weapon Cycling 20 Phase Shifting 10 Evasion (%) 85 Core Analysis 10 Armor Integrity Analysis 40 Recoil Reduction 4 Particle Charging 20 Stasis Canceling 1 Offensive Hacking 12 Defensive Hacking 10 Item Schematics ----------------- VSS Leg | -8/Materials | Scanalyzed Enh. Autogun | -8/Materials | Scanalyzed Riot Gun | -6/Zion | Free Slug Cannon | -6/Zion | Free Flamer | -6/Zion | Free Phasing Sabre | -6/Zion | Free Mic. Fission Core | -5/Factory | Scanalyzed Cld. Plasma Cannon | -5/Extension | Z-intel Hvy. Gatling Laser | -5/Extension | Z-intel Imp. Matter Compressor | -5/Extension | Z-intel Mni. Smartbomb Launcher | -5/Extension | Z-intel Plasma Sword | -5/Extension | Z-intel Enh. Fission Core | -5/Extension | Z-intel Imp. Cesium-ion Thruster | -5/Extension | Z-intel Fusion Reactor | -5/Extension | Z-intel Cld. Nuclear Pulse Thruster | -5/Extension | Z-intel Nanosword | -3/Research | Scanalyzed Centrium Medium Armor Plating | -3/Research | Scanalyzed Robot Schematics ------------------ R-10 Processor | -5/Extension | Z-intel E-15 Imp | -5/Extension | Z-intel K-01 Serf | -5/Extension | Z-intel B-60 Warrior | -5/Extension | Z-intel Fabricated ------------ Nothing Alien Tech Used ----------------- None Achievements -------------- None Challenges ------------ None Game ------ Seed NeutralizingCoolingAnalyzer Manual? 0 Play Time 03:10:31 Cumulative 327.2 hours Start 2021.09.02 @ 22:32:36 End 2021.09.03 @ 01:56:35 Sessions 1 Manual Loads 0 Difficulty Rogue Special Mode None Game No. 179 Rogue 179 Adventurer 0 Explorer 0 Win Type - Total 10 Types 6/0/2/2/0/0/0/0/0 Lore% 82 Gallery% 85 Achievement% 67 Wizard Run 0 Options --------- ASCII 0 Keyboard 0 Movement Numpad Keybinds 0 Fullscreen 1 Font 18/SmallcapsGlow Map View 76x50 Tactical HUD 1 Map Filters NONE Filters NONE Steam 1 RUN: 20e99304-38e1-4dc0-801a-0919030935a6